bitfinex-derivatives/quotes_ETHF0:USTF0_20250104
["timestamp","ask_amount","ask_price","bid_price","bid_amount"]
[1736031549531,4.57030265,3664.2,3663.9,0.27297]
[1736031549732,4.29735265,3664.2,3664.0,0.5261]
[1736031550032,0.27295,3664.1,3664.0,0.5261]
[1736031550232,4.57030265,3664.2,3664.0,0.5261]
[1736031550626,0.27295,3664.2,3664.1,4.58084005]
[1736031551125,1.76714801,3664.3,3664.1,4.58084005]
[1736031551532,1.49420801,3664.3,3664.1,5.09904005]
[1736031551838,0.27295,3664.2,3664.1,5.09904005]
[1736031552720,1.76714801,3664.3,3664.1,5.09904005]
[1736031553131,1.76714801,3664.3,3664.1,0.5182]
[1736031553525,0.27295,3664.2,3664.1,0.5182]
[1736031554128,1.49420801,3664.3,3664.1,0.5182]
[1736031554330,0.27295,3664.2,3664.1,0.5182]
[1736031555634,0.27295,3664.1,3664.0,6.95056465]
[1736031555836,1.25885801,3664.1,3664.0,6.42446465]
[1736031556136,2.24476602,3664.1,3664.0,6.42446465]
[1736031557729,0.27301,3663.4,3663.3,6.42446465]
[1736031559127,2.41989882,3663.4,3663.3,11.00025574]
[1736031559938,2.41989882,3663.4,3663.3,4.57579109]
[1736031561538,0.27301,3663.4,3663.3,11.52625574]
[1736031562739,2.41989882,3663.4,3663.3,11.52625574]
[1736031566441,0.27301,3663.4,3663.3,11.52625574]
[1736031570538,0.80211,3663.4,3663.3,11.52625574]
[1736031571240,3.93490683,3663.4,3663.3,4.57579109]
[1736031571745,4.48320683,3663.4,3663.3,4.57579109]
[1736031572344,0.27303,3663.1,3663.0,6.42446465]
[1736031572544,1.25893801,3663.1,3663.0,6.42446465]
[1736031573444,0.98590801,3663.1,3662.9,0.5262]
[1736031573641,0.78794,3663.0,3662.9,0.5262]
[1736031574145,0.27304,3662.9,3662.8,6.42446465]
[1736031574346,1.25894801,3662.9,3662.8,6.42446465]
[1736031574550,2.31994801,3662.9,3662.8,6.42446465]
[1736031574742,2.04690801,3662.9,3662.7,6.42446465]
[1736031574944,1.35005,3662.8,3662.7,6.42446465]
[1736031576042,0.27306,3662.7,3662.6,6.42446465]
[1736031577242,1.25896801,3662.7,3662.6,6.42446465]
[1736031577437,1.25896801,3662.7,3662.6,4.57226933]
[1736031579048,0.27307,3662.6,3662.5,0.5018]
[1736031584348,0.27308,3662.4,3662.3,0.545]
[1736031584553,1.25898801,3662.4,3662.3,0.545]
[1736031590067,1.25898801,3662.4,3662.2,0.5256]
[1736031590068,0.27309,3662.3,3662.2,0.5256]
[1736031590755,0.2731,3662.1,3662.0,0.5117]
[1736031590957,1.25900801,3662.1,3662.0,0.5117]
[1736031592554,1.25900801,3662.1,3661.8,1.0662]
[1736031592555,0.98590801,3662.1,3661.8,1.0662]
[1736031592766,1.6052,3662.2,3661.8,0.5173]
[1736031592767,1.25902801,3661.9,3661.8,0.5173]
[1736031592954,0.27313,3661.7,3661.6,0.5237]
[1736031593257,1.25903801,3661.7,3661.6,0.5237]
[1736031593954,0.27314,3661.6,3661.5,6.42446465]
[1736031594352,0.98590801,3661.7,3661.4,1.052]
[1736031594353,0.27315,3661.5,3661.4,1.052]
[1736031594552,1.76315801,3661.5,3661.4,1.052]
[1736031594752,2.82415801,3661.5,3661.4,1.052]
[1736031595353,2.82415801,3661.5,3661.4,0.5031]
[1736031597853,2.55100801,3661.5,3661.2,0.5237]
[1736031598060,1.25906801,3661.3,3661.2,0.5237]
[1736031603664,0.27317,3661.2,3661.1,0.5009]
[1736031604470,1.34117,3661.2,3661.1,0.5009]
[1736031606271,1.84997,3661.2,3661.1,0.5009]
[1736031607963,2.36927,3661.2,3661.1,0.5009]
[1736031610977,2.36927,3661.2,3660.8,0.53]
[1736031610978,0.27319,3660.9,3660.8,0.53]
[1736031611482,1.25909801,3660.9,3660.8,0.53]
[1736031611969,1.97181602,3660.9,3660.2,6.42446465]
[1736031612271,1.25914801,3660.3,3660.2,7.46736465]
[1736031612663,1.25914801,3660.3,3660.2,1.0429]
[1736031613064,1.25914801,3660.3,3659.8,6.42446465]
[1736031613065,0.27327,3659.9,3659.8,6.42446465]
[1736031613285,1.25917801,3659.9,3659.8,6.42446465]
[1736031614261,1.97181602,3659.9,3659.3,10.16816465]
[1736031614472,1.25920801,3659.4,3659.3,9.63226465]
[1736031614678,1.25920801,3659.4,3659.3,6.42446465]
[1736031616274,1.25920801,3659.4,3659.1,1.0577]
[1736031616275,0.27332,3659.2,3659.1,1.0577]
[1736031617079,3.2078,3659.7,3659.1,1.0577]
[1736031617277,1.34127,3660.0,3659.6,0.27329]
[1736031617479,1.068,3660.0,3659.7,0.5314]
[1736031617781,1.068,3660.0,3659.9,0.27327]
[1736031619377,1.068,3660.0,3659.8,1.31837]
[1736031619988,1.068,3660.0,3659.9,0.27327]
[1736031620187,5.3937718,3660.3,3659.8,1.0451]
[1736031620391,0.27325,3660.2,3659.8,1.31837]
[1736031621186,0.27325,3660.2,3659.9,0.27326]
[1736031622275,0.27325,3660.2,3659.8,1.31837]
[1736031622488,0.27326,3660.1,3659.8,1.31837]
[1736031622680,0.27326,3660.1,3659.8,1.0451]
[1736031623279,0.27326,3660.0,3659.8,1.0451]
[1736031623987,5.3937718,3660.3,3659.8,1.0451]
[1736031623988,0.27326,3660.1,3659.8,1.0451]
[1736031624777,0.27326,3660.0,3659.8,1.0451]
[1736031624983,0.27327,3659.9,3659.8,1.0451]
[1736031626187,5.3937718,3660.3,3659.8,1.0451]
[1736031626386,0.27327,3659.9,3659.8,1.0451]
[1736031637899,0.27327,3659.9,3659.2,3.2078]
[1736031637900,0.27331,3659.3,3659.2,3.2078]
[1736031638096,0.27331,3659.3,3659.2,3.7112]
[1736031639195,0.27331,3659.3,3659.2,0.5034]
[1736031639396,2.1859718,3659.4,3659.1,0.5389]
[1736031639695,0.27332,3659.2,3659.1,0.5389]
[1736031639895,0.27333,3659.1,3659.0,4.26480001]
[1736031640201,0.27334,3658.9,3658.8,4.80370001]
[1736031641495,0.27334,3658.9,3658.8,0.5389]
[1736031643200,5.3937718,3659.9,3659.1,0.27333]
[1736031643496,5.3937718,3659.9,3659.3,0.27331]
[1736031643703,0.27329,3659.6,3659.4,1.0292]
[1736031644202,0.27329,3659.6,3659.4,1.3025]
[1736031644616,0.2733,3659.5,3659.4,1.0292]
[1736031649407,0.2733,3659.5,3659.4,4.237]
[1736031650804,0.2733,3659.5,3659.4,3.2078]
[1736031651004,0.27331,3659.3,3659.2,4.26480001]
[1736031651201,2.4592818,3659.3,3659.2,4.26480001]
[1736031651701,5.6670818,3659.3,3659.2,4.26480001]
[1736031652004,0.27335,3658.8,3658.7,4.26480001]
[1736031653210,0.68333,3659.1,3658.5,4.26480001]
[1736031653712,0.27336,3658.6,3658.5,4.53817001]
[1736031654306,0.27336,3658.6,3658.5,6.69783465]
[1736031655408,0.27336,3658.6,3658.5,4.85243256]
[1736031656611,0.27336,3658.6,3658.5,11.27689721]
[1736031658802,0.27336,3658.6,3658.5,4.85243256]
[1736031659003,0.27336,3658.6,3658.5,4.57906256]
[1736031659508,0.27336,3658.6,3658.5,4.85243256]
[1736031660110,0.27336,3658.6,3658.5,4.57906256]
[1736031660710,0.27336,3658.6,3658.5,4.85243256]
[1736031661616,0.27336,3658.6,3658.5,11.28500317]
[1736031662437,1.4125,3658.8,3658.5,11.28500317]
[1736031662438,0.27336,3658.7,3658.6,0.27336]
[1736031663317,0.27336,3658.6,3658.5,11.28500317]
[1736031664309,0.27336,3658.6,3658.5,11.01163317]
[1736031664512,0.27336,3658.6,3658.5,4.57906256]
[1736031665518,2.4593318,3658.6,3658.5,4.57906256]
[1736031667511,3.5373318,3658.6,3658.5,4.57906256]
[1736031667712,3.2639718,3658.6,3658.3,4.28967682]
[1736031667912,0.27338,3658.4,3658.3,4.28967682]
[1736031668118,0.27338,3658.4,3658.3,4.56306682]
[1736031668820,0.27338,3658.4,3658.3,0.27339]
[1736031669719,0.27338,3658.4,3658.2,0.27339]
[1736031672616,3.2639718,3658.6,3658.1,4.28967682]
[1736031672925,3.2639718,3658.6,3658.2,0.27339]
[1736031673220,0.27339,3658.4,3658.2,0.27339]
[1736031676726,3.2639718,3658.6,3658.2,0.27339]
[1736031677021,0.27339,3658.3,3658.2,0.27339]
[1736031677523,0.2734,3658.2,3658.1,0.2734]
[1736031678025,3.2639718,3658.6,3658.0,4.56307682]
[1736031678320,0.2734,3658.1,3658.0,4.56307682]
[1736031679420,0.2734,3658.1,3658.0,0.2734]
[1736031680021,0.2734,3658.2,3658.1,0.27339]
[1736031681127,0.27341,3658.1,3658.0,0.27341]
[1736031692247,0.27341,3658.0,3657.9,8.68978682]
[1736031692447,0.27341,3658.0,3657.9,4.40011]
[1736031693047,0.27341,3658.0,3657.9,4.1267]
[1736031693645,0.27341,3658.0,3657.9,8.41707947]
[1736031694255,0.27341,3658.0,3657.9,8.69049947]
[1736031695055,0.27341,3658.0,3657.9,4.40012]
[1736031695352,0.27341,3658.0,3657.9,15.42102762]
[1736031697048,1.26031104,3658.1,3658.0,0.27341]
[1736031697342,2.14643766,3658.7,3657.9,21.13450866]
[1736031697542,2.48643323,3658.8,3658.7,0.27336]
[1736031697755,2.22136765,3659.0,3658.9,0.27334]
[1736031697944,1.46908765,3659.1,3659.0,0.27333]
[1736031698143,1.46908765,3659.1,3659.0,1.26023104]
[1736031698450,1.46908765,3659.1,3659.0,6.26023104]
[1736031699956,1.93260104,3660.1,3659.0,35.4518401]
[1736031700157,0.27326,3660.0,3659.9,0.27327]
[1736031700458,1.21896,3660.1,3659.9,0.27327]
[1736031700952,0.9457,3660.1,3659.8,3.2078]
[1736031701160,0.27326,3660.0,3659.9,0.27327]
[1736031701361,1.21896,3660.1,3659.9,0.27327]
[1736031701659,0.27326,3660.0,3659.8,7.76260796]
[1736031701857,0.9457,3660.1,3659.8,7.48933796]
[1736031702259,1.21895,3660.1,3659.9,0.27327]
[1736031702558,1.21895,3660.1,3659.8,7.48933796]
[1736031702559,0.9457,3660.1,3659.8,7.48933796]
[1736031702761,0.9457,3660.1,3659.9,0.27326]
[1736031702957,1.21895,3660.1,3660.0,0.27326]
[1736031703257,1.21895,3660.1,3659.9,0.27326]
[1736031705754,0.9457,3660.1,3659.9,0.27326]
[1736031706661,1.21895,3660.1,3659.9,0.27326]
[1736031706865,1.21895,3660.1,3659.8,3.48107]
[1736031708157,1.21895,3660.1,3659.8,3.2078]
[1736031708555,1.21895,3660.1,3659.8,3.48107]
[1736031709359,1.21895,3660.1,3659.9,0.27326]
[1736031709559,1.21895,3660.1,3659.8,3.2078]
[1736031709755,1.21895,3660.1,3659.8,3.48107]
[1736031711054,1.21895,3660.1,3659.8,3.2078]
[1736031711257,1.21895,3660.1,3659.9,0.27327]
[1736031712964,1.21895,3660.1,3659.8,3.48107]
[1736031713263,0.9457,3660.1,3659.8,3.48107]
[1736031713456,0.9457,3660.1,3659.8,3.2078]
[1736031713658,1.21896,3660.1,3659.9,0.27327]
[1736031714362,0.27326,3660.0,3659.8,3.48107]
[1736031715359,0.9457,3660.1,3659.8,3.2078]
[1736031715663,0.27326,3660.0,3659.8,3.48107]
[1736031716460,0.9457,3660.1,3659.8,3.48107]
[1736031716661,0.27327,3659.9,3659.8,3.48107]
[1736031717064,0.27327,3659.9,3659.8,3.2078]
[1736031717455,0.27328,3659.8,3659.6,0.27329]
[1736031717662,0.74358,3659.8,3659.6,0.27329]
[1736031718086,0.27328,3659.7,3659.6,0.27329]
[1736031722463,0.74358,3659.8,3659.7,0.27328]
[1736031724569,0.4703,3659.8,3659.7,0.27328]
[1736031724761,0.74357,3659.8,3659.7,0.27328]
[1736031726274,0.4703,3659.8,3659.7,0.27328]
[1736031726481,0.74357,3659.8,3659.7,0.27328]
[1736031734174,0.4703,3659.8,3659.7,0.27328]
[1736031734580,0.74357,3659.8,3659.7,0.27328]
[1736031739778,0.4703,3659.8,3659.7,0.27328]
[1736031739974,0.74357,3659.8,3659.7,0.27328]
[1736031740986,0.74357,3659.8,3659.7,5.04966165]
[1736031741783,1.72950557,3659.8,3659.7,2.58998165]
[1736031741984,0.27328,3659.7,3659.6,2.7536886]
[1736031742179,0.2733,3659.5,3659.4,8.56307593]
[1736031742379,0.2733,3659.4,3659.3,10.70384492]
[1736031742686,1.25923557,3659.4,3659.3,10.13128492]
[1736031742886,6.25923557,3659.4,3659.3,10.13128492]
[1736031743479,7.24517114,3659.4,3659.3,7.91e-06]
[1736031743685,0.27333,3659.0,3658.9,11.60302132]
[1736031743880,0.27333,3659.0,3658.9,11.04449132]
[1736031743881,5.54606557,3659.0,3658.9,11.04449132]
[1736031744082,10.54606557,3659.0,3658.9,9.87830132]
[1736031744284,11.74751104,3659.0,3658.9,8.11894505]
[1736031744501,0.27336,3658.7,3658.6,4.29044377]
[1736031744679,2.46074104,3658.7,3658.6,4.29044377]
[1736031744886,7.46074104,3658.7,3658.6,4.29044377]
[1736031745787,0.27341,3658.0,3657.7,4.56387377]
[1736031745983,0.27341,3658.0,3657.7,4.29044377]
[1736031746485,3.26638104,3658.2,3657.7,4.29044377]
[1736031746790,0.2734,3658.1,3657.7,4.56387377]
[1736031746991,0.27341,3658.0,3657.7,4.56387377]
[1736031747489,4.28891666,3658.7,3657.5,3.6818]
[1736031747690,1.079,3658.6,3658.5,0.27337]
[1736031748585,4.28891666,3658.7,3658.3,3.2078]
[1736031748890,5.37378364,3659.1,3658.5,2.18738104]
[1736031749083,4.28513673,3659.5,3659.0,3.2078]
[1736031749394,4.28513673,3659.5,3659.4,3.4811]
[1736031750485,3.26638104,3660.1,3659.8,0.27327]
[1736031750486,0.27326,3660.0,3659.8,0.27327]
[1736031750884,0.27326,3660.0,3659.4,3.2078]
[1736031751088,0.27326,3660.0,3659.7,0.27328]
[1736031751378,0.27326,3660.0,3659.4,3.2078]
[1736031751582,0.27327,3659.9,3659.6,0.27328]
[1736031751782,2.18738104,3660.1,3659.9,0.27326]
[1736031751985,2.46063104,3660.1,3659.9,0.27326]
[1736031752189,2.46063104,3660.1,3659.8,0.27327]
[1736031752381,2.18738104,3660.1,3659.5,0.9211]
[1736031752584,0.27326,3660.0,3659.7,0.27328]
[1736031752986,2.46064104,3660.1,3659.8,0.27327]
[1736031753185,2.18738104,3660.1,3660.0,0.27326]
[1736031753581,2.18738104,3660.1,3659.8,3.2078]
[1736031753582,1.35224,3660.3,3660.1,0.27325]
[1736031753793,0.27323,3660.4,3659.8,3.2078]
[1736031754097,0.27318,3661.1,3660.3,3.2078]
[1736031754308,5.64695364,3661.2,3660.8,3.481]
[1736031754594,5.37378364,3661.2,3660.8,3.2078]
[1736031754796,5.37378364,3661.2,3660.8,3.481]
[1736031754996,0.27317,3661.2,3660.9,0.27319]
[1736031755296,0.27317,3661.2,3660.8,3.48099]
[1736031755994,0.33813577,3661.3,3661.1,0.27317]
[1736031756191,2.46053104,3661.6,3661.2,0.27317]
[1736031756398,0.27312,3661.9,3661.6,0.27314]
[1736031756585,0.27311,3662.0,3661.6,0.27314]
[1736031756909,0.27311,3662.0,3661.3,0.9578]
[1736031757197,2.18738104,3661.6,3660.8,3.2078]
[1736031757390,0.27318,3661.2,3660.8,3.481]
[1736031757985,2.18738104,3661.6,3660.8,3.481]
[1736031758185,4.1217,3661.8,3660.8,3.2078]
[1736031758393,3.2078,3661.8,3661.4,0.27315]
[1736031758791,3.48093,3661.8,3661.4,0.27315]
[1736031758992,3.2078,3661.8,3661.4,0.27315]
[1736031759196,3.48093,3661.8,3661.4,0.27315]
[1736031759698,0.27313,3661.7,3661.3,0.27316]
[1736031759997,3.48093,3661.8,3661.3,0.27316]
[1736031760197,3.2078,3661.8,3661.3,0.27316]
[1736031760398,0.27313,3661.7,3661.3,0.27316]
[1736031760799,3.48093,3661.8,3661.4,0.27315]
[1736031761000,0.27313,3661.8,3661.2,3.2078]
[1736031761301,0.27314,3661.7,3661.3,0.27316]
[1736031761501,0.27314,3661.7,3661.3,0.73686]
[1736031761900,0.27312,3661.9,3661.3,0.4637]
[1736031762100,0.27312,3661.9,3661.4,0.27315]
[1736031762401,0.27313,3661.8,3661.4,0.27316]
[1736031763300,3.25938104,3662.0,3661.3,0.927]
[1736031763523,0.27314,3661.7,3661.3,0.927]
[1736031763698,3.25938104,3662.0,3661.4,0.27315]
[1736031763699,0.27313,3661.8,3661.4,0.27315]
[1736031763900,2.18738104,3662.0,3661.3,0.927]
[1736031764100,0.27313,3661.7,3661.3,1.20016]
[1736031764902,0.27315,3661.6,3661.3,0.927]
[1736031765103,0.27315,3661.6,3661.3,1.20016]
[1736031765407,0.27315,3661.6,3661.3,0.927]
[1736031765606,0.27314,3661.7,3661.3,1.20016]
[1736031765906,0.27314,3661.6,3661.3,1.20016]
[1736031767396,3.2078,3662.3,3661.3,0.927]
[1736031767397,5.66827104,3662.3,3661.3,0.927]
[1736031767603,3.2078,3663.0,3662.0,3.2078]
[1736031767802,2.65028104,3663.3,3662.4,3.2078]
[1736031768004,5.37378364,3663.4,3662.8,3.48085]
[1736031768306,5.64679364,3663.4,3662.8,3.48085]
[1736031768808,0.27302,3663.3,3662.8,3.48085]
[1736031769197,5.37378364,3663.4,3662.8,3.48085]
[1736031769404,5.64679364,3663.4,3662.8,3.48085]
[1736031769905,0.27301,3663.4,3663.1,0.27302]
[1736031770103,3.2078,3663.6,3663.1,0.27302]
[1736031770507,3.2078,3663.6,3662.8,3.2078]
[1736031770701,3.2078,3663.6,3663.0,0.27303]
[1736031770702,0.27302,3663.3,3663.0,0.27303]
[1736031771310,0.27302,3663.3,3662.8,3.2078]
[1736031771506,0.27302,3663.3,3663.1,0.27303]
[1736031771707,0.27302,3663.3,3662.8,3.2078]
[1736031772120,0.27302,3663.3,3663.0,0.27303]
[1736031773123,0.27304,3662.9,3662.8,3.2078]
[1736031775224,2.18738104,3663.7,3662.8,3.2078]
[1736031775421,1.071,3663.7,3662.8,3.2078]
[1736031775622,0.27298,3663.8,3663.4,0.273]
[1736031775826,0.27299,3663.7,3663.4,0.273]
[1736031776026,4.18758104,3664.0,3663.0,0.4709]
[1736031776230,0.273,3663.6,3663.3,0.27301]
[1736031776423,4.18758104,3664.0,3663.0,0.4709]
[1736031776618,0.27299,3663.7,3663.4,0.27301]
[1736031776823,0.27299,3663.6,3663.4,0.27301]
[1736031777017,0.9292,3664.0,3663.0,0.4709]
[1736031777223,0.27296,3664.0,3663.7,0.27298]
[1736031777726,0.27297,3663.9,3663.6,3.48079]
[1736031777926,0.27297,3663.9,3663.7,0.27298]
[1736031778227,0.27297,3663.9,3663.6,3.48079]
[1736031778829,1.071,3664.4,3663.6,3.2078]
[1736031779021,0.27296,3664.0,3663.7,0.27298]
[1736031779328,0.27297,3663.9,3663.7,0.27298]
[1736031779525,0.27298,3663.8,3663.6,3.2078]
[1736031779723,0.27298,3663.7,3663.6,3.2078]
[1736031779923,0.68237,3664.2,3663.4,0.27301]
[1736031780129,0.27299,3663.7,3663.4,0.27301]
[1736031780824,0.27298,3663.8,3663.5,0.27299]
[1736031781532,3.2078,3664.6,3663.9,0.27296]
[1736031781831,0.27294,3664.3,3664.0,0.74936]
[1736031782029,3.2078,3664.6,3664.0,0.4764]
[1736031782229,0.68232,3664.5,3663.6,3.6526]
[1736031782430,2.18738104,3664.3,3663.6,3.6526]
[1736031782631,0.27298,3663.7,3663.6,3.6526]
[1736031783361,3.2078,3664.2,3663.1,3.2078]
[1736031783362,0.27302,3663.2,3663.1,3.2078]
[1736031783528,0.27302,3663.2,3662.9,0.27304]
[1736031784030,0.27302,3663.2,3662.7,3.2078]
[1736031784224,0.27302,3663.2,3663.0,0.27303]
[1736031784423,0.27298,3663.8,3663.2,0.27302]
[1736031784634,0.27301,3663.3,3663.2,0.27302]
[1736031785228,4.2808,3664.2,3663.2,5.39518104]
[1736031785424,4.2808,3664.2,3663.5,2.18738104]
[1736031785425,3.2078,3664.2,3663.5,2.18738104]
[1736031785628,3.48072,3664.6,3664.4,0.27293]
[1736031786031,0.27292,3664.6,3664.4,0.27293]
[1736031786225,0.27292,3664.6,3664.2,3.2078]
[1736031786430,0.27293,3664.5,3664.2,3.48074]
[1736031786733,3.2078,3665.1,3664.2,3.2078]
[1736031786931,0.27296,3664.0,3663.9,0.486]
[1736031787135,1.073,3664.4,3663.6,3.6484]
[1736031787338,1.521,3664.4,3663.6,3.6484]
[1736031787530,1.521,3664.4,3663.4,0.486]
[1736031787531,0.27298,3663.7,3663.4,0.486]
[1736031787730,6.31548104,3664.3,3663.4,0.486]
[1736031788033,3.2078,3664.6,3663.6,3.2078]
[1736031788338,4.1454,3665.2,3664.1,2.18738104]
[1736031788537,4.1454,3665.2,3664.4,2.18738104]
[1736031788736,0.27281,3666.0,3665.1,0.27288]
[1736031789037,3.2078,3666.1,3665.3,2.18738104]
[1736031789427,0.27281,3666.0,3665.3,2.18738104]
[1736031789830,0.27285,3665.6,3665.3,2.18738104]
[1736031790038,5.39518104,3666.1,3665.2,3.6607]
[1736031790340,0.27288,3665.1,3664.8,3.4807]
[1736031790530,2.18738104,3665.8,3664.8,3.4807]
[1736031790531,3.8899,3665.7,3664.8,3.2078]
[1736031790734,0.27289,3665.0,3664.8,3.2078]
[1736031790931,0.27289,3664.9,3664.8,3.2078]
[1736031791338,0.27292,3664.6,3664.4,2.64028104]
[1736031791634,0.27292,3664.5,3664.4,2.64028104]
[1736031792040,0.27292,3664.5,3664.4,0.4529]
[1736031792241,2.18738104,3664.9,3663.9,3.2078]
[1736031792434,0.27296,3664.0,3663.9,3.2078]
[1736031795037,1.073,3664.6,3663.9,3.2078]
[1736031795343,0.27296,3664.0,3663.9,3.2078]
[1736031799752,0.27298,3663.8,3663.5,2.46038104]
[1736031799938,0.27298,3663.8,3663.6,0.27299]
[1736031800138,0.27298,3663.8,3663.5,2.46038104]
[1736031800343,0.27299,3663.7,3663.5,2.46038104]
[1736031800548,0.27299,3663.6,3663.5,2.18738104]
[1736031800749,0.68236,3664.3,3663.5,2.18738104]
[1736031800945,0.27299,3663.7,3663.5,2.46038104]
[1736031801849,0.27298,3663.8,3663.5,2.46038104]
[1736031802043,3.2078,3664.4,3663.5,2.18738104]
[1736031802249,3.2078,3664.4,3663.5,2.46038104]
[1736031802250,0.27299,3663.7,3663.5,2.46038104]
[1736031802446,0.68236,3664.3,3663.4,4.1545]
[1736031802747,0.273,3663.5,3663.4,4.1545]
[1736031803345,0.273,3663.5,3663.4,3.6915]
[1736031803950,0.27301,3663.3,3663.1,0.27303]
[1736031805043,1.073,3663.9,3663.0,0.4573]
[1736031805243,0.27303,3663.1,3663.0,0.4573]
[1736031805544,0.68245,3663.8,3663.0,0.73034]
[1736031805853,0.27303,3663.2,3663.1,0.27303]
[1736031806548,0.68245,3663.8,3663.1,0.27303]
[1736031806849,3.2078,3663.6,3662.9,2.18738104]
[1736031807048,3.2078,3663.6,3663.3,0.27301]
[1736031807247,0.273,3663.5,3663.3,0.27301]
[1736031807444,0.27301,3663.4,3663.3,0.27301]
[1736031807640,3.2078,3664.0,3663.0,0.4662]
[1736031807853,0.27301,3663.4,3663.0,0.4662]
[1736031808146,0.27301,3663.3,3663.0,0.4662]
[1736031808348,0.273,3663.6,3663.5,0.273]
[1736031808652,0.273,3663.6,3663.4,0.273]
[1736031808846,1.073,3663.9,3663.4,0.273]
[1736031809047,0.273,3663.5,3663.4,0.273]
[1736031809247,0.27299,3663.6,3663.4,0.273]
[1736031809950,1.073,3663.9,3663.0,0.4662]
[1736031810148,0.27298,3663.8,3663.5,0.273]
[1736031810347,1.073,3663.9,3663.5,0.273]
[1736031810348,0.27298,3663.7,3663.5,0.273]
[1736031811556,0.27298,3663.8,3663.6,0.27299]
[1736031811756,1.073,3663.9,3663.0,0.4662]
[1736031811954,3.2078,3664.0,3663.4,3.2078]
[1736031812252,3.2078,3664.0,3663.9,0.27297]
[1736031812854,3.2078,3664.0,3663.4,3.2078]
[1736031813162,3.2078,3664.0,3663.9,0.27297]
[1736031813353,3.48076,3664.0,3663.9,0.27297]
[1736031814357,3.2078,3664.0,3663.9,0.27297]
[1736031814959,0.27295,3664.2,3663.5,0.4624]
[1736031815159,0.27295,3664.2,3664.0,0.27296]
[1736031815465,2.18738104,3664.4,3663.6,0.4769]
[1736031815650,3.20695897,3664.7,3664.2,5.39518104]
[1736031815854,3.20695897,3664.7,3664.6,3.48072]
[1736031816253,3.20695897,3664.8,3664.7,0.27291]
[1736031817458,3.20695897,3664.8,3664.6,3.2078]
[1736031817459,0.27288,3665.1,3664.9,0.27289]
[1736031817654,0.27288,3665.2,3665.0,0.27289]
[1736031819360,0.27288,3665.1,3665.0,0.27289]
[1736031819555,0.27289,3665.0,3664.4,4.29044377]
[1736031819757,0.27289,3665.0,3664.8,0.2729]
[1736031821061,0.2729,3664.9,3664.7,0.27291]
[1736031821764,2.18738104,3665.0,3664.6,3.2078]
[1736031822062,0.27292,3664.6,3664.5,0.27292]
[1736031822256,0.27291,3664.7,3664.5,0.27292]
[1736031822858,1.34891,3664.8,3664.5,0.27292]
[1736031823259,1.34891,3664.8,3664.6,0.27291]
[1736031823459,1.34891,3664.8,3664.3,0.915]
[1736031823662,1.34891,3664.8,3664.6,0.27292]
[1736031824557,2.86043672,3665.2,3664.9,0.27289]
[1736031824762,2.86043672,3665.2,3664.3,0.915]
[1736031825057,2.41063672,3665.2,3665.0,0.27288]
[1736031825259,2.13775672,3665.2,3665.0,0.27288]
[1736031825463,2.13775672,3665.2,3665.1,0.27288]
[1736031826165,2.41063672,3665.2,3665.0,0.27288]
[1736031826354,0.27288,3665.2,3665.0,0.27288]
[1736031826865,0.27288,3665.1,3664.9,0.27289]
[1736031827166,0.27288,3665.2,3665.0,0.27289]
[1736031827663,0.27288,3665.1,3665.0,0.27289]
[1736031827863,0.27288,3665.1,3664.9,0.27289]
[1736031828360,0.27287,3665.2,3664.9,0.27289]
[1736031828954,0.27287,3665.2,3665.0,0.27288]
[1736031829271,1.076,3665.4,3665.1,0.27288]
[1736031829455,0.27287,3665.2,3665.1,0.27288]
[1736031830266,1.076,3665.4,3664.5,3.2078]
[1736031830466,1.076,3665.4,3665.1,0.27288]
[1736031830467,0.27287,3665.3,3665.1,0.27288]
[1736031831063,1.076,3665.4,3664.5,5.39518104]
[1736031831266,0.27286,3665.3,3664.5,5.39518104]
[1736031831460,0.27286,3665.3,3665.0,0.27288]
[1736031831963,0.27286,3665.3,3665.1,0.27287]
[1736031832260,2.13775672,3665.8,3665.7,0.27284]
[1736031833565,0.27281,3666.0,3665.8,0.27282]
[1736031834272,3.2078,3666.1,3665.2,1.4332]
[1736031834758,3.2078,3666.1,3665.3,3.2078]
[1736031834960,0.27285,3665.5,3665.3,3.2078]
[1736031835160,0.27285,3665.5,3665.3,0.27286]
[1736031835469,0.27288,3665.1,3664.9,3.48069]
[1736031835674,1.076,3665.6,3664.9,3.2078]
[1736031835969,0.4749,3665.5,3664.9,3.2078]
[1736031836166,0.27283,3665.8,3665.4,0.27286]
[1736031836369,0.27283,3665.8,3665.7,0.27284]
[1736031836563,0.27282,3665.9,3665.7,0.27284]
[1736031836863,2.13775672,3666.0,3665.4,0.498]
[1736031837069,0.27282,3665.9,3665.5,0.4576]
[1736031837256,2.41057672,3666.0,3665.8,0.27283]
[1736031837456,0.27282,3665.9,3665.8,0.27283]
[1736031837865,2.62905672,3666.5,3665.7,3.2078]
[1736031838065,0.2728,3666.2,3666.0,0.27281]
[1736031838271,2.62905672,3666.5,3665.7,3.48064]
[1736031838272,0.27283,3665.8,3665.7,3.48064]
[1736031838569,2.18738104,3666.4,3665.5,0.4576]
[1736031838868,0.27281,3666.1,3665.6,0.27284]
[1736031839064,2.18738104,3666.4,3665.9,0.27281]
[1736031839258,0.27278,3666.4,3666.2,0.27279]
[1736031840266,0.27278,3666.5,3666.3,0.27278]
[1736031840583,2.13775672,3666.6,3666.5,0.27278]
[1736031840759,2.59945672,3666.9,3666.5,3.2078]
[1736031840957,0.27276,3666.8,3666.6,0.27277]
[1736031841169,0.27275,3666.8,3666.5,3.2078]
[1736031841364,0.27275,3666.8,3666.5,3.48057]
[1736031841564,2.13775672,3666.9,3666.6,0.27276]
[1736031841759,0.27276,3666.8,3666.6,0.27276]
[1736031841968,0.27276,3666.7,3666.6,0.27276]